bitfinex-derivatives/quotes_BNBF0:USTF0_20250630
["timestamp","ask_amount","ask_price","bid_price","bid_amount"]
[1751292363043,0.26628407,653.89,652.89,1.08932263]
[1751292363249,0.26628407,653.89,652.9,1.08932263]
[1751292363448,0.26628407,653.89,652.91,1.08932263]
[1751292363648,0.26628407,653.89,652.86,2.442]
[1751292363944,3.79248409,653.78,652.87,1.08937652]
[1751292364148,3.79248409,653.78,652.88,1.08937652]
[1751292364444,3.79248409,653.78,652.89,1.08937652]
[1751292364747,3.79248409,653.78,652.9,1.08937652]
[1751292364943,3.79248409,653.78,652.91,1.08937652]
[1751292365147,0.26628407,653.89,652.86,2.442]
[1751292365344,0.26628407,653.89,652.87,1.08951113]
[1751292365542,0.26628407,653.89,652.86,2.442]
[1751292365543,0.26628407,653.89,652.88,1.08951113]
[1751292365747,0.26628407,653.89,652.89,1.08951113]
[1751292365943,0.26628407,653.89,652.9,1.08951113]
[1751292366149,0.26628407,653.89,652.91,1.08951113]
[1751292366445,0.26628407,653.89,652.86,2.442]
[1751292366647,0.26628407,653.89,652.87,1.08958257]
[1751292366847,0.26628407,653.89,652.86,2.442]
[1751292367147,0.26628407,653.89,652.87,1.08963496]
[1751292367349,0.26628407,653.89,652.86,2.442]
[1751292367547,0.26628407,653.89,652.87,1.08961683]
[1751292367744,0.26628407,653.89,652.86,2.442]
[1751292377453,4.05876816,653.89,652.86,2.442]
[1751292378052,0.26628407,653.89,652.86,2.442]
[1751292378552,3.79248409,653.88,652.86,2.442]
[1751292378952,0.26628407,653.89,652.86,2.442]
[1751292380056,4.05876816,653.89,652.86,2.442]
[1751292383554,0.26628407,653.89,652.86,2.442]
[1751292384861,0.26628407,653.89,652.85,3.058]
[1751292387163,3.79248409,653.88,652.85,3.058]
[1751292387460,3.79248409,653.88,652.86,1.892]
[1751292387762,0.26628407,653.89,652.86,1.892]
[1751292401578,4.05876816,653.89,652.86,1.892]
[1751292402779,0.26628407,653.89,652.86,1.892]
[1751292416687,3.79248409,653.84,652.86,1.892]
[1751292417291,3.79248409,653.88,652.86,1.892]
[1751292419193,4.05876816,653.89,652.86,1.892]
[1751292420193,0.26628407,653.89,652.86,1.892]
[1751292421395,3.79248409,653.86,652.85,2.86]
[1751292422094,3.79248409,653.76,652.85,2.86]
[1751292422492,3.79248409,653.75,652.85,2.86]
[1751292423393,3.79248409,653.74,652.85,2.86]
[1751292423996,3.79248409,653.76,652.85,2.86]
[1751292424192,3.79248409,653.76,652.86,2.587]
[1751292424394,3.79248409,653.75,652.86,2.587]
[1751292424894,3.79248409,653.69,652.86,2.587]
[1751292425394,3.79248409,653.86,652.86,2.587]
[1751292427498,3.79248409,653.85,652.86,2.587]
[1751292428602,3.79248409,653.84,652.86,2.587]
[1751292429198,0.26628407,653.89,652.86,2.587]
[1751292434200,3.79248409,653.83,652.86,2.587]
[1751292434901,3.79248409,653.72,652.86,2.587]
[1751292435301,3.79248409,653.58,652.86,2.587]
[1751292435902,3.79248409,653.59,652.86,2.587]
[1751292436405,3.79248409,653.56,652.86,2.587]
[1751292436901,3.79248409,653.57,652.86,2.587]
[1751292437501,3.79248409,653.62,652.86,2.587]
[1751292438908,3.79248409,653.68,652.86,2.587]
[1751292442009,3.79248409,653.64,652.86,2.587]
[1751292442707,3.79248409,653.62,652.86,2.587]
[1751292444607,3.79248409,653.63,652.86,2.587]
[1751292445112,3.79248409,653.83,652.86,2.587]
[1751292446112,0.26628407,653.89,652.86,2.587]
[1751292456416,0.26628407,653.89,652.85,2.86]
[1751292459316,0.26628407,653.89,652.86,1.754]
[1751292463617,3.79248409,653.73,652.86,1.754]
[1751292464223,3.79248409,653.81,652.86,1.754]
[1751292464722,3.79248409,653.79,652.86,1.754]
[1751292465118,3.79248409,653.81,652.86,1.754]
[1751292465720,0.26628407,653.89,652.86,1.754]
[1751292465721,3.79248409,653.85,652.86,1.754]
[1751292466821,3.79248409,653.83,652.86,1.754]
[1751292467722,3.79248409,653.81,652.86,1.754]
[1751292468621,3.79248409,653.8,652.86,1.754]
[1751292471429,3.79248409,653.79,652.86,1.754]
[1751292473334,3.79248409,653.8,652.86,1.754]
[1751292473834,0.26628407,653.89,652.86,1.754]
[1751292480545,3.79248409,653.95,652.86,1.754]
[1751292480842,3.79248409,653.63,652.86,1.754]
[1751292481441,3.79248409,653.62,652.86,1.754]
[1751292482446,3.79248409,653.57,652.86,1.754]
[1751292483248,3.79248409,653.58,652.86,1.754]
[1751292483849,3.79248409,653.54,652.86,1.754]
[1751292484345,0.26643596,653.64,652.86,1.754]
[1751292484346,3.79248409,653.5,652.86,1.754]
[1751292487552,3.79248409,653.51,652.86,1.754]
[1751292488648,3.79248409,653.52,652.86,1.754]
[1751292489053,3.79248409,653.55,652.86,1.754]
[1751292492451,3.79248409,653.51,652.86,1.754]
[1751292493253,3.79248409,653.5,652.86,1.754]
[1751292493753,3.79248409,653.52,652.86,1.754]
[1751292494250,3.79248409,653.48,652.86,1.754]
[1751292495850,0.26643596,653.64,652.86,1.754]
[1751292508160,3.79248409,653.63,652.86,1.754]
[1751292508764,0.26643596,653.64,652.86,1.754]
[1751292512465,0.26643596,653.64,652.48,2.844]
[1751292513369,3.79248409,653.54,652.48,2.844]
[1751292513865,3.79248409,653.53,652.48,2.844]
[1751292514966,3.79248409,653.5,652.48,2.844]
[1751292515470,3.79248409,653.53,652.48,2.844]
[1751292515764,3.79248409,653.53,652.49,2.039]
[1751292515967,3.79248409,653.48,652.49,2.039]
[1751292518465,0.26643596,653.64,652.49,2.039]
[1751292524275,0.26643596,653.64,652.5,1.764]
[1751292527481,3.79248409,653.51,652.5,1.764]
[1751292527879,0.26643596,653.64,652.5,1.764]
[1751292528487,3.79248409,653.63,652.5,1.764]
[1751292528883,0.26643596,653.64,652.5,1.764]
[1751292533290,3.79248409,653.35,652.5,1.764]
[1751292533690,3.79248409,653.16,652.5,1.764]
[1751292534293,3.79248409,653.34,652.5,1.764]
[1751292535301,3.79248409,653.35,652.5,1.764]
[1751292535792,3.79248409,653.47,652.5,1.764]
[1751292536292,3.79248409,653.45,652.5,1.764]
[1751292536788,3.79248409,653.47,652.5,1.764]
[1751292537292,3.79248409,653.51,652.5,1.764]
[1751292537889,3.79248409,653.55,652.5,1.764]
[1751292538391,3.79248409,653.6,652.5,1.764]
[1751292538891,0.26643596,653.64,652.5,1.764]
[1751292541897,0.26643596,653.64,652.51,1.859]
[1751292550305,0.26643596,653.64,652.52,2.462]
[1751292555902,3.79248409,653.63,652.52,2.462]
[1751292556502,3.79248409,653.53,652.52,2.462]
[1751292556806,3.79248409,653.56,652.52,2.462]
[1751292557303,3.79248409,653.52,652.52,2.462]
[1751292558302,0.26643596,653.64,652.52,2.462]
[1751292559506,4.05892005,653.64,652.52,2.462]
[1751292560407,3.79248409,653.62,652.52,2.462]
[1751292561507,3.79248409,653.59,652.52,2.462]
[1751292562508,3.79248409,653.61,652.52,2.462]
[1751292563009,3.79248409,653.6,652.52,2.462]
[1751292563509,3.79248409,653.59,652.52,2.462]
[1751292564109,0.26643596,653.64,652.52,2.462]
[1751292565611,0.26643596,653.64,652.53,1.838]
[1751292569217,3.79248409,653.62,652.53,1.838]
[1751292570216,3.79248409,653.61,652.53,1.838]
[1751292571315,4.05892005,653.64,652.53,1.838]
[1751292571715,3.79248409,653.6,652.53,1.838]
[1751292572920,3.79248409,653.52,652.53,1.838]
[1751292573321,3.79248409,653.51,652.53,1.838]
[1751292573820,3.79248409,653.48,652.53,1.838]
[1751292574521,3.79248409,653.41,652.53,1.838]
[1751292574917,3.79248409,653.63,652.53,1.838]
[1751292575420,0.26643596,653.64,652.53,1.838]
[1751292575918,3.79248409,653.61,652.53,1.838]
[1751292576522,0.26643596,653.64,652.53,1.838]
[1751292579324,0.26643596,653.64,652.54,2.605]
[1751292582627,0.26643596,653.64,652.55,2.135]
[1751292585732,5.30947773,653.6,652.55,2.135]
[1751292586328,9.10196182,653.6,652.55,2.135]
[1751292586634,3.79248409,653.6,652.55,2.135]
[1751292586829,3.79248409,653.62,652.55,2.135]
[1751292587335,4.05892005,653.64,652.55,2.135]
[1751292589531,3.79248409,653.63,652.55,2.135]
[1751292590938,3.79248409,653.62,652.55,2.135]
[1751292591438,3.79248409,653.6,652.55,2.135]
[1751292591933,3.79248409,653.19,652.55,2.135]
[1751292592442,3.79248409,653.23,652.55,2.135]
[1751292593444,3.79248409,653.27,652.55,2.135]
[1751292594444,3.79248409,653.25,652.55,2.135]
[1751292595044,3.79248409,653.34,652.55,2.135]
[1751292595640,3.79248409,653.35,652.55,2.135]
[1751292596145,3.79248409,653.34,652.55,2.135]
[1751292596541,3.79248409,653.28,652.55,2.135]
[1751292597546,3.79248409,653.27,652.55,2.135]
[1751292598144,3.79248409,653.28,652.55,2.135]
[1751292598747,3.79248409,653.27,652.55,2.135]
[1751292599148,3.79248409,653.26,652.55,2.135]
[1751292601548,3.79248409,653.26,651.8,1.14422193]
[1751292601749,3.79248409,653.25,651.81,1.08429735]
[1751292601949,3.79248409,653.25,651.82,1.08429735]
[1751292602147,3.79248409,653.21,651.83,1.08429735]
[1751292602450,3.79248409,653.21,651.84,1.08429735]
[1751292602651,3.79248409,653.21,651.85,1.08429735]
[1751292602853,3.79248409,653.21,651.86,1.08429735]
[1751292603053,3.79248409,653.21,651.87,1.08429735]
[1751292603254,3.79248409,653.24,651.88,1.08429735]
[1751292603452,3.79248409,653.24,651.89,1.08429735]
[1751292603748,3.79248409,653.25,651.9,1.08429735]
[1751292603948,3.79248409,653.25,651.91,1.08429735]
[1751292604147,3.79248409,653.25,651.92,1.08429735]
[1751292604348,3.79248409,653.24,651.93,1.08429735]
[1751292605254,3.79248409,653.18,651.93,1.08429735]
[1751292605555,3.79248409,653.18,651.94,2.176]
[1751292605758,3.79248409,653.18,651.95,1.08429735]
[1751292605956,3.79248409,653.19,651.95,1.08429735]
[1751292606252,3.79248409,653.2,651.95,1.08429735]
[1751292606957,3.79248409,653.32,651.95,1.08429735]
[1751292608459,3.79248409,653.33,651.95,1.08429735]
[1751292611055,3.79248409,653.32,651.95,1.08429735]
[1751292612061,3.79248409,653.33,651.95,1.08429735]
[1751292613157,3.79248409,653.29,651.95,1.08429735]
[1751292614162,3.79248409,653.28,651.95,1.08429735]
[1751292614563,3.79248409,653.3,651.95,1.08429735]
[1751292615763,3.79248409,653.29,651.95,1.08429735]
[1751292616660,3.79248409,653.15,651.95,1.08429735]
[1751292617261,3.79248409,653.16,651.95,1.08429735]
[1751292617664,3.79248409,653.34,651.95,1.08429735]
[1751292618664,3.79248409,653.33,651.95,1.08429735]
[1751292619265,3.79248409,653.32,651.95,1.08429735]
[1751292619966,3.79248409,653.32,651.96,1.807]
[1751292620160,3.79248409,653.32,651.97,1.08429735]
[1751292620363,3.79248409,653.31,651.97,1.08429735]
[1751292621967,3.79248409,653.3,651.97,1.08429735]
[1751292622367,3.79248409,653.35,651.97,1.08429735]
[1751292622968,3.79248409,653.36,651.97,1.08429735]
[1751292624467,3.79248409,653.34,651.97,1.08429735]
[1751292626468,3.79248409,653.36,651.97,1.08429735]
[1751292627070,3.79248409,653.35,651.97,1.08429735]
[1751292627571,3.79248409,653.25,651.97,1.08429735]
[1751292628568,3.79248409,653.24,651.97,1.08429735]
[1751292629171,3.79248409,653.23,651.97,1.08429735]
[1751292630572,3.79248409,653.22,651.97,1.08429735]
[1751292631275,3.79248409,653.22,651.98,1.08429735]
[1751292631476,3.79248409,653.22,651.99,1.08429735]
[1751292631674,3.79248409,653.19,652.0,1.08429735]
[1751292631873,3.79248409,653.19,652.01,1.08429735]
[1751292632074,3.79248409,653.11,652.02,1.08429735]
[1751292632374,3.79248409,653.11,652.03,1.08429735]
[1751292632573,3.79248409,653.15,652.04,1.08429735]
[1751292632779,3.79248409,653.15,652.05,1.08429735]
[1751292633077,3.79248409,653.15,652.06,1.08429735]
[1751292633276,3.79248409,653.15,652.07,1.08429735]
[1751292633476,3.79248409,653.15,652.08,1.08429735]
[1751292633775,5.30947773,653.4,652.09,1.08429735]
[1751292633776,3.79248409,653.14,652.09,1.08429735]
[1751292633975,3.79248409,653.14,651.94,2.176]
[1751292634178,3.79248409,653.34,651.95,1.0889614]
[1751292634378,3.79248409,653.34,651.96,1.0889614]
[1751292634679,3.79248409,653.34,651.97,1.0889614]
[1751292634878,3.79248409,653.31,651.98,1.0889614]
[1751292635080,3.79248409,653.31,651.99,1.0889614]
[1751292635280,3.79248409,653.3,652.0,1.0889614]
[1751292635978,3.79248409,653.33,652.0,1.0889614]
[1751292636382,3.79248409,653.35,652.0,1.0889614]
[1751292639385,3.79248409,653.33,652.0,1.0889614]
[1751292639884,3.79248409,653.2,652.0,1.0889614]
[1751292640384,3.79248409,653.15,652.0,1.0889614]
[1751292642486,3.79248409,653.16,652.0,1.0889614]
[1751292643987,3.79248409,653.14,652.0,1.0889614]
[1751292644591,3.79248409,653.11,652.0,1.0889614]
[1751292645490,3.79248409,653.05,652.0,1.0889614]
[1751292646592,3.79248409,653.01,652.0,1.0889614]
[1751292651297,3.79248409,653.03,652.0,1.0889614]
[1751292652299,3.79248409,653.05,652.0,1.0889614]
[1751292653599,3.79248409,653.05,652.01,2.367]
[1751292653797,3.79248409,653.05,652.02,1.0889614]
[1751292654299,3.79248409,653.09,652.02,1.0889614]
[1751292655396,3.79248409,653.3,652.02,1.0889614]
[1751292656004,3.79248409,653.31,652.02,1.0889614]
[1751292656602,3.79248409,653.32,652.02,1.0889614]
[1751292656802,3.79248409,653.32,652.03,2.397]
[1751292657105,3.79248409,653.31,652.03,2.397]
[1751292659507,3.79248409,653.31,652.04,1.08916793]
[1751292659707,3.79248409,653.36,652.05,1.08916793]
[1751292659905,3.79248409,653.36,652.06,1.08916793]
[1751292660103,3.79248409,653.37,652.07,1.08916793]
[1751292660308,3.79248409,653.37,652.08,1.08916793]
[1751292660608,3.79248409,653.37,652.09,1.08916793]
[1751292660804,3.79248409,653.37,652.1,1.08916793]
[1751292661003,3.79248409,653.37,652.03,2.397]
[1751292661308,3.79248409,653.46,652.04,1.08915447]
[1751292661506,3.79248409,653.46,652.05,1.08915447]
[1751292661708,3.79248409,653.47,652.06,1.08915447]
[1751292661904,3.79248409,653.47,652.07,1.08915447]
[1751292662110,3.79248409,653.48,652.08,1.08915447]
[1751292662306,3.79248409,653.48,652.09,1.08915447]
[1751292662607,3.79248409,653.48,652.1,1.08915447]
[1751292662910,3.79248409,653.48,652.11,1.08915447]
[1751292663110,3.79248409,653.48,652.12,1.08915447]
[1751292663311,3.79248409,653.45,652.13,1.08915447]
[1751292663507,3.79248409,653.45,652.03,2.397]
[1751292663811,3.79248409,653.45,652.04,1.08909745]
[1751292664107,3.79248409,653.45,652.05,1.08909745]
[1751292664306,3.79248409,653.45,652.06,1.08909745]
[1751292664507,3.79248409,653.45,652.07,1.08909745]
[1751292664708,3.79248409,653.45,652.08,1.08909745]
[1751292664907,3.79248409,653.45,652.09,1.08909745]
[1751292665208,3.79248409,653.45,652.1,1.08909745]
[1751292665507,3.79248409,653.54,652.11,1.08909745]
[1751292665711,3.79248409,653.54,652.12,1.08909745]
[1751292666012,3.79248409,653.59,652.13,1.08909745]
[1751292666207,3.79248409,653.59,652.14,1.08909745]
[1751292666407,3.79248409,653.61,652.15,1.08909745]
[1751292666612,3.79248409,653.61,652.16,1.08909745]
[1751292666810,3.79248409,653.61,652.17,1.08909745]
[1751292667009,4.05892005,653.64,652.18,1.08909745]
[1751292667208,4.05892005,653.64,652.19,1.08909745]
[1751292667412,0.26643596,653.64,652.2,1.08909745]
[1751292667614,0.26643596,653.64,652.21,1.08909745]
[1751292667808,0.26643596,653.64,652.22,1.08909745]
[1751292668013,0.26643596,653.64,652.23,1.08909745]
[1751292668313,0.26643596,653.64,652.24,1.08909745]
[1751292668512,0.26643596,653.64,652.25,1.08909745]
[1751292668715,3.79248409,653.73,652.26,1.08909745]
[1751292669014,3.79248409,653.97,652.27,1.08909745]
[1751292669211,3.79248409,653.97,652.23,1.971]
[1751292669411,3.79248409,653.97,652.24,1.08739065]
[1751292669615,3.79248409,653.98,652.25,1.08739065]
[1751292669817,3.79248409,653.98,652.26,1.08739065]
[1751292670116,3.79248409,653.96,652.23,1.971]
[1751292670317,3.79248409,653.96,652.24,1.08711859]
[1751292670618,3.79248409,653.97,652.25,1.08711859]
[1751292670817,3.79248409,653.97,652.26,1.08711859]
[1751292671112,3.79248409,653.98,652.23,1.971]
[1751292671317,3.79248409,653.98,652.24,1.08688436]
[1751292671519,3.79248409,653.98,652.25,1.08688436]
[1751292671717,3.79248409,653.98,652.23,1.971]
[1751292671915,3.79248409,653.98,652.24,1.08659804]
[1751292672119,3.79248409,653.91,652.25,1.08659804]
[1751292672315,3.79248409,653.91,652.26,1.08659804]
[1751292672619,3.79248409,653.58,652.27,1.08659804]
[1751292672817,3.79248409,653.58,652.28,1.08659804]
[1751292673014,3.79248409,653.58,652.29,1.08659804]
[1751292673215,3.79248409,653.58,652.3,1.08659804]
[1751292673417,3.79248409,653.58,652.23,1.971]
[1751292673616,3.79248409,653.59,652.24,1.08588747]
[1751292673920,3.79248409,653.59,652.25,1.08588747]
[1751292674116,3.79248409,653.65,652.26,1.08588747]
[1751292674315,3.79248409,653.65,652.27,1.08588747]
[1751292674520,0.26655433,653.31,652.28,1.08588747]
[1751292674820,0.26655433,653.31,652.29,1.08588747]
[1751292675016,0.26655433,653.31,652.23,1.971]
[1751292675017,0.26655433,653.31,652.3,1.08588747]
[1751292675217,0.26655433,653.31,652.31,1.08588747]
[1751292675520,0.26655433,653.31,652.32,1.08588747]
[1751292675721,0.26655433,653.31,652.33,1.08588747]
[1751292675921,0.26655433,653.31,652.34,1.08588747]
[1751292676122,0.26655433,653.31,652.35,1.08588747]
[1751292676319,0.26655433,653.31,652.36,1.08588747]
[1751292676519,0.26655433,653.31,652.37,1.08588747]
[1751292676724,0.26655433,653.31,652.38,1.08588747]
[1751292676924,3.79248409,653.97,652.39,1.08588747]
[1751292677121,0.2664584,653.46,652.4,1.08588747]
[1751292677424,3.79248409,653.99,652.41,1.08588747]
[1751292677625,3.79248409,654.05,652.42,1.08588747]
[1751292677922,3.79248409,654.05,652.43,1.08588747]
[1751292678121,3.79248409,654.28,652.44,1.08588747]
[1751292678425,3.79248409,654.28,652.45,1.08588747]
[1751292678720,3.79248409,654.35,652.46,1.08588747]
[1751292678925,3.79248409,654.35,652.47,1.08588747]
[1751292679124,0.26642372,653.83,652.48,1.08588747]
[1751292679424,0.26642372,653.83,652.49,3.16888747]
[1751292679727,0.26642372,653.83,652.5,1.08588747]
[1751292680025,0.26642372,653.83,652.51,1.08588747]
[1751292680224,0.26642372,653.83,652.52,1.08588747]
[1751292680422,0.26642372,653.83,652.53,1.08588747]
[1751292680625,0.26642372,653.83,652.49,2.083]
[1751292682124,0.26642372,653.83,652.5,1.08084156]
[1751292682324,0.26642372,653.83,652.49,2.083]
[1751292682524,0.26642372,653.83,652.5,1.08048013]
[1751292682728,0.26642372,653.83,652.49,2.083]
[1751292683028,0.26642372,653.83,652.5,1.08048013]
[1751292683224,0.26642372,653.83,652.51,1.08040432]
[1751292683424,0.26642372,653.83,652.49,2.083]
[1751292683727,0.26642372,653.83,652.5,1.08015957]
[1751292683923,0.26642372,653.83,652.51,1.08015957]
[1751292684127,0.26642372,653.83,652.49,2.083]
[1751292684431,0.26642372,653.83,652.5,1.08008951]
[1751292684730,0.26642372,653.83,652.49,2.083]
[1751292685030,0.26642372,653.83,652.5,1.07986205]
[1751292685324,0.26642372,653.83,652.49,2.083]
[1751292685325,0.26642372,653.83,652.51,1.07986205]
[1751292685526,0.26642372,653.83,652.49,2.083]
[1751292685731,0.26642372,653.83,652.5,1.07956739]
[1751292685927,0.26642372,653.83,652.51,1.07956739]
[1751292686127,0.26642372,653.83,652.49,2.083]
[1751292686329,0.26642372,653.83,652.5,1.07948968]
[1751292686528,0.26642372,653.83,652.49,2.083]
[1751292686729,0.26642372,653.83,652.5,1.07931298]
[1751292686931,0.26642372,653.83,652.49,2.083]
[1751292687130,0.26642372,653.83,652.5,1.07931351]
[1751292687328,0.26642372,653.83,652.49,2.083]
[1751292687529,0.26642372,653.83,652.5,1.07908222]
[1751292687831,0.26642372,653.83,652.49,2.083]
[1751292688029,0.26642372,653.83,652.5,1.07908222]
[1751292688229,0.26642372,653.83,652.49,2.083]
[1751292688432,0.26642372,653.83,652.5,1.07886812]
[1751292688630,0.26642372,653.83,652.49,2.083]
[1751292688832,0.26642372,653.83,652.5,1.07886807]
[1751292689029,0.26642372,653.83,652.49,2.083]
[1751292689334,0.26642372,653.83,652.5,1.07886799]
[1751292689532,0.26642372,653.83,652.49,2.083]
[1751292689730,0.26642372,653.83,652.5,1.07867309]
[1751292690029,0.26642372,653.83,652.49,2.083]
[1751292702640,0.26642372,653.83,652.23,1.971]
[1751292702844,0.26642372,653.83,652.24,1.07723036]
[1751292703040,0.26642372,653.83,652.25,1.07723036]
[1751292703239,0.26642372,653.83,652.26,1.07723036]
[1751292703441,0.26642372,653.83,652.27,1.07723036]
[1751292703642,0.26642372,653.83,652.28,1.07723036]
[1751292703844,0.26642372,653.83,652.29,1.07723036]
[1751292704140,0.26642372,653.83,652.3,1.07723036]
[1751292704345,0.26642372,653.83,652.31,1.07723036]
[1751292704544,0.26642372,653.83,652.32,1.07723036]
[1751292704740,0.26642372,653.83,652.23,1.971]
[1751292705045,0.26642372,653.83,652.24,1.07768118]
[1751292705243,0.26642372,653.83,652.25,1.07768118]
[1751292705444,0.26642372,653.83,652.26,1.07768118]
[1751292705743,0.26642372,653.83,652.27,1.07768118]
[1751292706040,0.26642372,653.83,652.28,1.07768118]
[1751292706240,0.26642372,653.83,652.29,1.07768118]
[1751292706446,0.26642372,653.83,652.3,1.07768118]
[1751292706641,0.26642372,653.83,652.31,1.07768118]
[1751292706941,0.26642372,653.83,652.32,1.07768118]
[1751292707141,0.26642372,653.83,652.33,1.07768118]
[1751292707445,0.26642372,653.83,652.24,3.242]
[1751292707742,0.26642372,653.83,652.25,1.07823579]
[1751292707945,0.26642372,653.83,652.26,1.07823579]
[1751292708147,0.26642372,653.83,652.27,1.07823579]
[1751292708348,0.26642372,653.83,652.28,1.07823579]
[1751292708646,0.26642372,653.83,652.29,1.07823579]
[1751292708847,0.26642372,653.83,652.3,1.07823579]
[1751292709043,0.26642372,653.83,652.31,1.07823579]
[1751292709245,0.26642372,653.83,652.32,1.07823579]
[1751292709445,0.26642372,653.83,652.33,1.07823579]
[1751292709643,0.26642372,653.83,652.34,1.07823579]
[1751292709852,0.26642372,653.83,652.35,1.07823579]
[1751292710152,0.26642372,653.83,652.24,3.242]
[1751292710451,0.26642372,653.83,652.25,1.0787988]
[1751292710652,0.26642372,653.83,652.26,1.0787988]
[1751292710947,0.26642372,653.83,652.27,1.0787988]
[1751292711153,0.26642372,653.83,652.28,1.0787988]
[1751292711353,0.26642372,653.83,652.29,1.0787988]
[1751292711554,0.26642372,653.83,652.3,1.0787988]
[1751292711848,0.26642372,653.83,652.31,1.0787988]
[1751292712149,0.26642372,653.83,652.32,1.0787988]
[1751292712454,0.26642372,653.83,652.33,1.0787988]
[1751292712652,0.26642372,653.83,652.34,1.0787988]
[1751292712953,0.26642372,653.83,652.35,1.0787988]
[1751292713149,0.26642372,653.83,652.36,1.0787988]
[1751292713453,0.26642372,653.83,652.24,3.242]
[1751292713651,0.26642372,653.83,652.25,1.07966308]
[1751292713954,0.26642372,653.83,652.26,1.07966308]
[1751292714252,0.26642372,653.83,652.27,1.07966308]
[1751292714450,3.79248409,653.82,652.28,1.07966308]
[1751292714653,3.79248409,653.82,652.29,1.07966308]
[1751292714948,0.26642372,653.83,652.3,1.07966308]
[1751292715155,0.26642372,653.83,652.31,1.07966308]
[1751292715355,0.26642372,653.83,652.32,1.07966308]
[1751292715552,0.26642372,653.83,652.33,1.07966308]
[1751292715752,0.26642372,653.83,652.34,1.07966308]
[1751292715957,0.26642372,653.83,652.35,1.07966308]
[1751292716259,0.26642372,653.83,652.36,1.07966308]
[1751292716557,3.79248409,653.82,652.37,1.07966308]
[1751292716857,3.79248409,653.82,652.38,1.07966308]
[1751292717158,3.79248409,653.82,652.39,1.07966308]
[1751292717354,3.79248409,653.82,652.24,3.242]
[1751292717553,3.79248409,653.8,652.25,1.08099338]
[1751292717754,3.79248409,653.8,652.26,1.08099338]
[1751292717952,3.79248409,653.8,652.27,1.08099338]
[1751292718151,3.79248409,653.8,652.28,1.08099338]
[1751292718357,3.79248409,653.8,652.29,1.08099338]
[1751292718656,4.05890781,653.83,652.3,1.08099338]
[1751292718957,4.05890781,653.83,652.31,1.08099338]
[1751292719153,0.26642372,653.83,652.32,1.08099338]
[1751292719453,0.26642372,653.83,652.33,1.08099338]
[1751292719657,0.26642372,653.83,652.34,1.08099338]
[1751292719859,0.26642372,653.83,652.35,1.08099338]
[1751292720160,0.26642372,653.83,652.36,1.08099338]
[1751292720363,0.26642372,653.83,652.37,1.08099338]
[1751292720562,0.26642372,653.83,652.38,1.08099338]
[1751292720761,0.26642372,653.83,652.39,1.08099338]
[1751292720964,0.26642372,653.83,652.4,1.08099338]
[1751292721164,4.05890781,653.83,652.41,1.08099338]
[1751292721364,4.05890781,653.83,652.42,1.08099338]
[1751292721564,3.79248409,653.8,652.43,1.08099338]
[1751292721765,3.79248409,653.8,652.44,1.08099338]
[1751292721964,3.79248409,653.8,652.45,1.08099338]
[1751292722165,3.79248409,653.74,652.27,1.13645591]
[1751292722465,3.79248409,653.74,652.28,1.08240999]
[1751292722665,0.26642372,653.83,652.29,1.08240999]
[1751292722964,0.26642372,653.83,652.3,1.08240999]
[1751292723262,0.26642372,653.83,652.31,1.08240999]
[1751292723460,0.26642372,653.83,652.32,1.08240999]
[1751292723765,0.26642372,653.83,652.33,1.08240999]
[1751292723965,0.26642372,653.83,652.34,1.08240999]
[1751292724168,0.26642372,653.83,652.35,1.08240999]
[1751292724367,0.26642372,653.83,652.36,1.08240999]
[1751292724566,0.26642372,653.83,652.37,1.08240999]
[1751292724862,0.26642372,653.83,652.38,1.08240999]
[1751292725067,0.26642372,653.83,652.39,1.08240999]
[1751292725262,0.26642372,653.83,652.4,1.08240999]
[1751292725466,0.26642372,653.83,652.41,1.08240999]
[1751292725768,0.26642372,653.83,652.42,1.08240999]
[1751292725966,0.26642372,653.83,652.23,1.971]
[1751292725967,0.26642372,653.83,652.43,1.08240999]
[1751292726166,0.26642372,653.83,652.44,1.08240999]
[1751292726367,0.26642372,653.83,652.45,1.08240999]
[1751292726564,0.26642372,653.83,652.11,1.13645591]
[1751292726768,0.26642372,653.83,652.12,1.08417232]
[1751292727063,0.26642372,653.83,652.13,1.08417232]
[1751292727364,0.26642372,653.83,652.14,1.08417232]
[1751292727564,0.26642372,653.83,652.15,1.08417232]
[1751292727764,0.26642372,653.83,652.16,1.08417232]
[1751292727967,0.26642372,653.83,652.17,1.08417232]
[1751292728168,0.26642372,653.83,652.18,1.08417232]
[1751292728365,0.26642372,653.83,652.19,1.08417232]
[1751292728665,0.26642372,653.83,652.2,1.08417232]